fUST/lending_fUST_20260515
["ID","MTS","AMOUNT","RATE_DAILY","PERIOD"]
[422342069,1778853047000,-156070.98478594,0.0001078,2]
[422342079,1778853047000,-16397.98353313,0.00010918,2]
[422342081,1778853047000,-513.55206766,0.00010918,2]
[422342077,1778853047000,-300.85999999,0.00010827,2]
[422342074,1778853047000,-150.307,0.0001081,2]
[422342072,1778853047000,-169.762,0.0001081,2]
[422342075,1778853047000,-152.0,0.00010818,7]
[422342070,1778853047000,-2172.477395,0.00010796,2]
[422342107,1778853088000,500.0,5.001e-05,2]
[422342108,1778853092000,-279.61365701,5.001e-05,2]
[422342109,1778853168000,-151.0,5.001e-05,2]
[422342110,1778853170000,-151.0,5.001e-05,2]
[422342111,1778853269000,2444.87309793,5e-05,2]
[422342112,1778853278000,5000.0,5e-05,2]
[422342113,1778853287000,5000.0,5e-05,2]
[422342114,1778853310000,4197.99993856,5e-05,2]
[422342184,1778854232000,-300.0,9.246e-05,2]
[422342200,1778854232000,-500.0,9.999e-05,2]
[422342188,1778854232000,-170.759237,9.957e-05,2]
[422342186,1778854232000,-438.6048658,9.281e-05,2]
[422342174,1778854232000,-322.5035778,5.281e-05,2]
[422342178,1778854232000,-380.5542218,7.281e-05,2]
[422342172,1778854232000,-170.759237,5.078e-05,2]
[422342182,1778854232000,-170.759237,8.33e-05,2]
[422342180,1778854232000,-5830.62478607,7.6e-05,2]
[422342201,1778854232000,-500.0,9.999e-05,2]
[422342176,1778854232000,-170.759237,6.704e-05,2]
[422342196,1778854232000,-500.0,9.999e-05,2]
[422342218,1778854232000,-5399.86526697,0.0001,2]
[422342203,1778854232000,-489.8521642,9.999e-05,2]
[422342198,1778854232000,-500.0,9.999e-05,2]
[422342221,1778854232000,-1574.88483083,0.0001,2]
[422342213,1778854232000,-45563.33343631,0.0001,2]
[422342211,1778854232000,-270.49,0.0001,14]
[422342207,1778854232000,-500.0,9.999e-05,2]
[422342216,1778854232000,-999.51343262,0.0001,2]
[422342192,1778854232000,-1200.0,9.997e-05,2]
[422342205,1778854232000,-500.0,9.999e-05,2]
[422342190,1778854232000,-300.0,9.997e-05,2]
[422342194,1778854232000,-12431.0,9.998e-05,2]
[422342209,1778854232000,-430.0,9.999e-05,2]
[422342306,1778854240000,-300.0,0.00010199,2]
[422342323,1778854240000,-300.0,0.00010199,2]
[422342320,1778854240000,-300.0,0.00010199,2]
[422342319,1778854240000,-300.0,0.00010199,2]
[422342314,1778854240000,-300.0,0.00010199,2]
[422342316,1778854240000,-300.0,0.00010199,2]
[422342313,1778854240000,-300.0,0.00010199,2]
[422342300,1778854240000,-300.0,0.00010199,2]
[422342310,1778854240000,-300.0,0.00010199,2]
[422342296,1778854240000,-1224.85871026,0.0001018,2]
[422342304,1778854240000,-300.0,0.00010199,2]
[422342302,1778854240000,-300.0,0.00010199,2]
[422342298,1778854240000,-513.5737642,0.0001018,2]
[422342331,1778854240000,-600.0,0.00010199,2]
[422342291,1778854240000,-1459.97290446,0.0001,2]
[422342308,1778854240000,-300.0,0.00010199,2]
[422342326,1778854240000,-300.0,0.00010199,2]
[422342293,1778854240000,-1003.02709554,0.0001018,2]
[422342329,1778854240000,-300.0,0.00010199,2]
[422342363,1778854240000,-500.0,0.00010857,2]
[422342355,1778854240000,-7600.16163652,0.00010758,2]
[422342347,1778854240000,-278.50452501,0.00010676,2]
[422342353,1778854240000,-836.3360567,0.00010743,2]
[422342357,1778854240000,-152.0,0.00010818,7]
[422342361,1778854240000,-168.1,0.0001084,2]
[422342359,1778854240000,-516.71905998,0.0001084,3]
[422342351,1778854240000,-559.08216987,0.00010739,2]
[422342325,1778854240000,-300.0,0.00010199,2]
[422342345,1778854240000,-151.5,0.00010676,2]
[422342343,1778854240000,-151.5,0.00010676,2]
[422342339,1778854240000,-2741.45957,0.00010608,2]
[422342337,1778854240000,-160.0,0.00010365,2]
[422342333,1778854240000,-160.0,0.00010365,2]
[422342341,1778854240000,-151.5,0.00010676,2]
[422342335,1778854240000,-161.65638237,0.00010365,2]
[422342349,1778854240000,-500.0,0.00010687,2]
[422342402,1778854241000,-500.0,0.00010857,2]
[422342397,1778854241000,-500.0,0.00010857,2]
[422342418,1778854241000,-500.0,0.00010857,2]
[422342416,1778854241000,-500.0,0.00010857,2]
[422342414,1778854241000,-500.0,0.00010857,2]
[422342420,1778854241000,-500.0,0.00010857,2]
[422342432,1778854241000,-450.0,0.00010857,2]
[422342436,1778854241000,-647.81,0.00010858,2]
[422342422,1778854241000,-224.90083455,0.00010857,2]
[422342434,1778854241000,-20518.97903554,0.00010858,2]
[422342424,1778854241000,-500.0,0.00010857,2]
[422342438,1778854241000,-9297.65016271,0.00010858,2]
[422342426,1778854241000,-500.0,0.00010857,2]
[422342428,1778854241000,-500.0,0.00010857,2]
[422342410,1778854241000,-500.0,0.00010857,2]
[422342430,1778854241000,-500.0,0.00010857,2]
[422342403,1778854241000,-500.0,0.00010857,2]
[422342389,1778854241000,-268.00370865,0.00010857,2]
[422342405,1778854241000,-500.0,0.00010857,2]
[422342365,1778854241000,-500.0,0.00010857,2]
[422342367,1778854241000,-500.0,0.00010857,2]
[422342369,1778854241000,-500.0,0.00010857,2]
[422342373,1778854241000,-500.0,0.00010857,2]
[422342371,1778854241000,-500.0,0.00010857,2]
[422342377,1778854241000,-500.0,0.00010857,2]
[422342384,1778854241000,-500.0,0.00010857,2]
[422342395,1778854241000,-500.0,0.00010857,2]
[422342375,1778854241000,-500.0,0.00010857,2]
[422342441,1778854241000,-83671.56780711,0.00010858,2]
[422342386,1778854241000,-231.99629135,0.00010857,2]
[422342391,1778854241000,-500.0,0.00010857,2]
[422342379,1778854241000,-97.90683535,0.00010857,2]
[422342393,1778854241000,-500.0,0.00010857,2]
[422342399,1778854241000,-607.00119222,0.00010857,2]
[422342408,1778854241000,-500.0,0.00010857,2]
[422342382,1778854241000,-402.09316465,0.00010857,2]
[422342443,1778854241000,-15592.01699194,0.00010858,2]
[422342412,1778854241000,-500.0,0.00010857,2]
[422342445,1778854241000,-6908.49517248,0.000109,2]
[422342497,1778854241000,-500.0,0.00010958,2]
[422342494,1778854241000,-500.0,0.00010958,2]
[422342500,1778854241000,-500.0,0.00010958,2]
[422342501,1778854241000,-500.0,0.00010958,2]
[422342492,1778854241000,-500.0,0.00010958,2]
[422342506,1778854241000,-500.0,0.00010958,2]
[422342496,1778854241000,-500.0,0.00010958,2]
[422342504,1778854241000,-765.06,0.00010958,2]
[422342511,1778854241000,-504.82,0.00010958,2]
[422342513,1778854241000,-500.0,0.00010958,2]
[422342518,1778854241000,-1047.99,0.00010958,2]
[422342520,1778854241000,-500.0,0.00010958,2]
[422342521,1778854241000,-183.60313035,0.00010958,2]
[422342524,1778854241000,-380.12686965,0.00010958,2]
[422342516,1778854241000,-500.0,0.00010958,2]
[422342447,1778854241000,-647.0,0.00010951,2]
[422342509,1778854241000,-500.0,0.00010958,2]
[422342489,1778854241000,-500.0,0.00010958,2]
[422342507,1778854241000,-500.0,0.00010958,2]
[422342481,1778854241000,-500.0,0.00010958,2]
[422342449,1778854241000,-2201.0,0.00010951,2]
[422342486,1778854241000,-500.0,0.00010958,2]
[422342459,1778854241000,-500.0,0.00010958,2]
[422342454,1778854241000,-443.0,0.00010951,2]
[422342452,1778854241000,-1412.0,0.00010951,2]
[422342461,1778854241000,-280.76097368,0.00010958,2]
[422342457,1778854241000,-4936.1879,0.00010958,2]
[422342467,1778854241000,-219.23902632,0.00010958,2]
[422342456,1778854241000,-185.0,0.00010951,2]
[422342473,1778854241000,-285.29084066,0.00010958,2]
[422342475,1778854241000,-500.0,0.00010958,2]
[422342483,1778854241000,-500.0,0.00010958,2]
[422342479,1778854241000,-1154.53,0.00010958,2]
[422342471,1778854241000,-215.17510798,0.00010958,2]
[422342526,1778854241000,-399.0536129,0.00010958,2]
[422342469,1778854241000,-247.11266163,0.00010958,2]
[422342477,1778854241000,-677.31,0.00010958,2]
[422342797,1778854243000,-500.0,0.00010958,2]
[422342780,1778854243000,-500.0,0.00010958,2]
[422342778,1778854243000,-500.0,0.00010958,2]
[422342777,1778854243000,-1200.2,0.00010958,2]
[422342773,1778854243000,-500.0,0.00010958,2]
[422342775,1778854243000,-672.42,0.00010958,2]
[422342767,1778854243000,-621.94,0.00010958,2]
[422342771,1778854243000,-500.0,0.00010958,2]
[422342765,1778854243000,-1527.89514237,0.00010958,2]
[422342763,1778854243000,-381.97378559,0.00010958,2]
[422342761,1778854243000,-100.9463871,0.00010958,2]
[422342759,1778854243000,-372.72144658,0.00010739,2]
[422342799,1778854243000,-500.0,0.00010958,2]
[422342769,1778854243000,-500.0,0.00010958,2]
[422342801,1778854243000,-432.48424158,0.00010958,2]
[422342819,1778854243000,-2278.80907994,0.00010958,2]
[422342795,1778854243000,-500.0,0.00010958,2]
[422342792,1778854243000,-500.0,0.00010958,2]
[422342835,1778854243000,-165.66411818,0.00010958,2]
[422342832,1778854243000,-659.36,0.00010958,2]
[422342829,1778854243000,-500.0,0.00010958,2]
[422342817,1778854243000,-75.05762882,0.00010958,2]
[422342815,1778854243000,-367.94237118,0.00010958,2]
[422342813,1778854243000,-272.44224158,0.00010958,2]
[422342827,1778854243000,-161.59174228,0.00010958,2]
[422342825,1778854243000,-1061.21825772,0.00010958,2]
[422342823,1778854243000,-891.11,0.00010958,2]
[422342821,1778854243000,-207.67174228,0.00010958,2]
[422342807,1778854243000,-206.99224158,0.00010958,2]
[422342805,1778854243000,-67.51575842,0.00010958,2]
[422342811,1778854243000,-293.00775842,0.00010958,2]
[422343039,1778854246000,-500.0,0.00010958,2]
[422343055,1778854246000,-500.0,0.00010958,2]
[422343053,1778854246000,-1204.06,0.00010958,2]
[422343050,1778854246000,-500.0,0.00010958,2]
[422343048,1778854246000,-730.77,0.00010958,2]
[422343049,1778854246000,-1087.7,0.00010958,2]
[422343051,1778854246000,-500.0,0.00010958,2]
[422343044,1778854246000,-604.56,0.00010958,2]
[422343038,1778854246000,-130.22369837,0.00010958,2]
[422343047,1778854246000,-500.0,0.00010958,2]
[422343045,1778854246000,-500.0,0.00010958,2]
[422343043,1778854246000,-500.0,0.00010958,2]
[422343040,1778854246000,-500.0,0.00010958,2]
[422343041,1778854246000,-500.0,0.00010958,2]
[422343037,1778854246000,-248.48096439,0.00010739,2]
[422343052,1778854246000,-500.0,0.00010958,2]
[422343046,1778854246000,-500.0,0.00010958,2]
[422343054,1778854246000,-500.0,0.00010958,2]
[422343058,1778854246000,-277.2369146,0.00010958,2]
[422343059,1778854246000,-103.35365595,0.00010958,2]
[422343056,1778854246000,-500.0,0.00010958,2]
[422343069,1778854246000,-500.0,0.00010958,2]
[422343068,1778854246000,-500.0,0.00010958,2]
[422343064,1778854246000,-500.0,0.00010958,2]
[422343066,1778854246000,-500.0,0.00010958,2]
[422343065,1778854246000,-643.79,0.00010958,2]
[422343074,1778854246000,-953.51,0.00010958,2]
[422343067,1778854246000,-750.85,0.00010958,2]
[422343073,1778854246000,-500.0,0.00010958,2]
[422343071,1778854246000,-500.0,0.00010958,2]
[422343070,1778854246000,-501.2456998,0.00010958,2]
[422343075,1778854246000,-670.91,0.00010958,2]
[422343060,1778854246000,-500.0,0.00010958,2]
[422343057,1778854246000,-2740.18942945,0.00010958,2]
[422343061,1778854246000,-500.0,0.00010958,2]
[422343072,1778854246000,-500.0,0.00010958,2]
[422343062,1778854246000,-1335.0868775,0.00010958,2]
[422343063,1778854246000,-333.5631225,0.00010958,2]
[422343081,1778854247000,-3264.88,0.00010958,2]
[422343086,1778854247000,-500.0,0.00010958,2]
[422343085,1778854247000,-500.0,0.00010958,2]
[422343082,1778854247000,-552.35778499,0.00010958,2]
[422343080,1778854247000,-747.16,0.00010958,2]
[422343077,1778854247000,-709.47,0.00010958,2]
[422343087,1778854247000,-500.0,0.00010958,2]
[422343079,1778854247000,-500.0,0.00010958,2]
[422343076,1778854247000,-500.0,0.00010958,2]
[422343083,1778854247000,-790.73,0.00010958,2]
[422343078,1778854247000,-500.0,0.00010958,2]
[422343084,1778854247000,-681.92,0.00010958,2]
[422343091,1778854247000,-502.34,0.00010958,2]
[422343088,1778854247000,-500.0,0.00010958,2]
[422343090,1778854247000,-500.0,0.00010958,2]
[422343092,1778854247000,-500.0,0.00010958,2]
[422343093,1778854247000,-1620.53,0.00010958,2]
[422343094,1778854247000,-500.0,0.00010958,2]
[422343095,1778854247000,-1137.02,0.00010958,2]
[422343099,1778854247000,-351.67981905,0.00010958,2]
[422343098,1778854247000,-732.04,0.00010958,2]
[422343100,1778854247000,-148.32018095,0.00010958,2]
[422343097,1778854247000,-1091.62,0.00010958,2]
[422343101,1778854247000,-1428.67981905,0.00010958,2]
[422343096,1778854247000,-500.0,0.00010958,2]
[422343089,1778854247000,-854.45,0.00010958,2]
[422343111,1778854772000,164.617923,4.855e-05,2]
[422343117,1778855256000,5000.0,5e-05,2]
[422343118,1778855322000,200.0,4.92e-05,2]
[422343119,1778855325000,200.0,4.92e-05,7]
[422343121,1778855378000,5000.0,5e-05,2]
[422343157,1778855431000,-300.0,5.517e-05,2]
[422343155,1778855431000,-334.3229416,5.172e-05,2]
[422343144,1778855431000,5000.0,5e-05,2]
[422343153,1778855431000,-4542.698,5.095e-05,2]
[422343150,1778855431000,-457.302,5.095e-05,2]
[422343192,1778855432000,-1680.0,6.069e-05,2]
[422343190,1778855432000,-164.617923,5.522e-05,2]
[422343181,1778855432000,-300.0,5.518e-05,2]
[422343187,1778855432000,-300.0,5.518e-05,2]
[422343189,1778855432000,-300.0,5.519e-05,2]
[422343194,1778855432000,-420.0,6.07e-05,2]
[422343179,1778855432000,-1200.0,5.517e-05,2]
[422343183,1778855432000,-300.0,5.518e-05,2]
[422343196,1778855432000,-164.617923,6.188e-05,2]
[422343198,1778855432000,-1295.78488082,6.676e-05,2]
[422343202,1778855432000,-587.0,6.677e-05,2]
[422343201,1778855432000,-287.21511918,6.676e-05,2]
[422343205,1778855432000,-164.617923,6.855e-05,2]
[422343206,1778855432000,-6.15175782,7.172e-05,2]
[422343184,1778855432000,-300.0,5.518e-05,2]
[422343340,1778855440000,-600.0,0.00010857,2]
[422343338,1778855440000,-168.101,0.00010847,2]
[422343325,1778855440000,-160.0,0.0001042,2]
[422343313,1778855440000,-877.0,8.887e-05,2]
[422343321,1778855440000,-210.26892067,0.0001032,2]
[422343319,1778855440000,-3434.32630625,9.89e-05,2]
[422343323,1778855440000,-160.0,0.00010364,2]
[422343310,1778855440000,-164.617923,8.187e-05,2]
[422343312,1778855440000,-164.617923,8.854e-05,2]
[422343330,1778855440000,-1827.639713,0.00010644,2]
[422343308,1778855440000,-1152.0,8.079e-05,2]
[422343305,1778855440000,-164.617923,7.521e-05,2]
[422343303,1778855440000,-752.00168133,7.344e-05,2]
[422343299,1778855440000,-388.34931327,7.172e-05,2]
[422343301,1778855440000,-70.99831867,7.344e-05,2]
[422343316,1778855440000,-454.67920058,9.172e-05,2]
[422343327,1778855440000,-161.65638237,0.0001042,2]
[422343317,1778855440000,-164.617923,9.52e-05,2]
[422343344,1778855440000,-6217.64565525,0.000109,2]
[422343346,1778855440000,-4591.0012224,0.00010956,2]
[422343357,1778855440000,-437.65243121,0.00010957,2]
[422343358,1778855440000,-500.0,0.00010957,2]
[422343362,1778855440000,-500.0,0.00010957,2]
[422343355,1778855440000,-62.34756879,0.00010957,2]
[422343368,1778855440000,-500.0,0.00010957,2]
[422343371,1778855440000,-471.72012912,0.00010957,2]
[422343367,1778855440000,-70.65243121,0.00010957,2]
[422343360,1778855440000,-500.0,0.00010957,2]
[422343352,1778855440000,-851.6684067,0.00010956,2]
[422343350,1778855440000,-3160.06549222,0.00010956,2]
[422343336,1778855440000,-575.20822715,0.00010684,2]
[422343332,1778855440000,-500.0,0.00010684,2]
[422343334,1778855440000,-500.0,0.00010684,2]
[422343348,1778855440000,-1651.41441828,0.00010956,2]
[422343342,1778855440000,-349.999999,0.000109,2]
[422343364,1778855440000,-429.34756879,0.00010957,2]
[422343329,1778855440000,-500.0,0.00010548,2]
[422343534,1778855446000,-1171.86,0.00010958,2]
[422343539,1778855446000,-500.0,0.00010958,2]
[422343541,1778855446000,-478.49299985,0.00010958,2]
[422343537,1778855446000,-500.0,0.00010958,2]
[422343535,1778855446000,-500.0,0.00010958,2]
[422343538,1778855446000,-500.0,0.00010958,2]
[422343546,1778855446000,-500.0,0.00010958,2]
[422343540,1778855446000,-543.46985678,0.00010958,2]
[422343544,1778855446000,-913.78,0.00010958,2]
[422343554,1778855446000,-1046.13,0.00010958,2]
[422343543,1778855446000,-500.0,0.00010958,2]
[422343533,1778855446000,-1943.8488,0.00010958,2]
[422343536,1778855446000,-500.0,0.00010958,2]
[422343531,1778855446000,-165.65397626,0.00010958,2]
[422343521,1778855446000,-500.0,0.00010957,2]
[422343525,1778855446000,-500.0,0.00010957,2]
[422343527,1778855446000,-400.0,0.00010957,2]
[422343528,1778855446000,-270.0,0.00010957,2]
[422343526,1778855446000,-500.0,0.00010957,2]
[422343524,1778855446000,-500.0,0.00010957,2]
[422343530,1778855446000,-5757.69805333,0.00010958,2]
[422343523,1778855446000,-500.0,0.00010957,2]
[422343522,1778855446000,-500.0,0.00010957,2]
[422343520,1778855446000,-372.43058419,0.00010957,2]
[422343519,1778855446000,-500.0,0.00010957,2]
[422343529,1778855446000,-700.41261006,0.00010958,2]
[422343518,1778855446000,-28.27987088,0.00010957,2]
[422343517,1778855446000,-275.56046851,7.271e-05,2]
[422343553,1778855446000,-500.0,0.00010958,2]
[422343532,1778855446000,-500.0,0.00010958,2]
[422343545,1778855446000,-500.0,0.00010958,2]
[422343542,1778855446000,-21.50700015,0.00010958,2]
[422343579,1778855446000,-935.81,0.00010958,2]
[422343549,1778855446000,-500.0,0.00010958,2]
[422343580,1778855446000,-667.33127313,0.00010958,2]
[422343578,1778855446000,-1582.86,0.00010958,2]
[422343575,1778855446000,-500.0,0.00010958,2]
[422343574,1778855446000,-213.30640099,0.00010958,2]
[422343573,1778855446000,-366.06359901,0.00010958,2]
[422343576,1778855446000,-550.58,0.00010958,2]
[422343572,1778855446000,-622.24,0.00010958,2]
[422343570,1778855446000,-500.0,0.00010958,2]
[422343571,1778855446000,-500.0,0.00010958,2]
[422343569,1778855446000,-500.0,0.00010958,2]
[422343577,1778855446000,-500.0,0.00010958,2]
[422343568,1778855446000,-500.0,0.00010958,2]
[422343560,1778855446000,-613.61,0.00010958,2]
[422343565,1778855446000,-500.0,0.00010958,2]
[422343567,1778855446000,-500.0,0.00010958,2]
[422343563,1778855446000,-500.0,0.00010958,2]
[422343551,1778855446000,-500.0,0.00010958,2]
[422343548,1778855446000,-500.0,0.00010958,2]
[422343547,1778855446000,-642.96,0.00010958,2]
[422343550,1778855446000,-500.0,0.00010958,2]
[422343564,1778855446000,-610.86,0.00010958,2]
[422343556,1778855446000,-593.95,0.00010958,2]
[422343566,1778855446000,-1270.15,0.00010958,2]
[422343552,1778855446000,-606.4,0.00010958,2]
[422343555,1778855446000,-1842.3,0.00010958,2]
[422343558,1778855446000,-500.0,0.00010958,2]
[422343561,1778855446000,-500.0,0.00010958,2]
[422343562,1778855446000,-500.0,0.00010958,2]
[422343559,1778855446000,-500.0,0.00010958,2]
[422343557,1778855446000,-500.0,0.00010958,2]
[422343655,1778856632000,-336.96248985,8.529e-05,2]
[422343647,1778856632000,-4709.25419369,8.401e-05,2]
[422343649,1778856632000,-290.74580631,8.486e-05,2]
[422343642,1778856632000,-229.83432848,8.314e-05,2]
[422343644,1778856632000,-290.74580631,8.401e-05,2]
[422343653,1778856632000,-1469.04307291,8.486e-05,2]
[422343666,1778856632000,-397.61573802,0.00010529,2]
[422343659,1778856632000,-500.0,0.00010409,2]
[422343668,1778856632000,-300.0,0.00010648,2]
[422343670,1778856632000,-300.0,0.00010648,2]
[422343663,1778856632000,-1200.0,0.00010528,2]
[422343672,1778856632000,-300.0,0.00010648,2]
[422343673,1778856632000,-118.96264128,0.00010648,2]
[422343657,1778856632000,-160.0,0.0001036,2]
[422343867,1778856638000,-500.0,0.00010958,2]
[422343844,1778856638000,-2566.0990919,0.00010928,2]
[422343842,1778856638000,-4584.9623449,0.00010928,2]
[422343838,1778856638000,-9169.9246899,0.00010928,2]
[422343840,1778856638000,-2555.0052201,0.00010928,2]
[422343846,1778856638000,-500.0,0.00010957,2]
[422343854,1778856638000,-198.38719844,0.00010957,2]
[422343850,1778856638000,-200.0,0.00010957,2]
[422343852,1778856638000,-500.0,0.00010957,2]
[422343856,1778856638000,-300.0,0.00010957,2]
[422343834,1778856638000,-6449.58765932,0.000109,2]
[422343836,1778856638000,-2223.9316736,0.00010928,2]
[422343832,1778856638000,-150.307,0.00010895,2]
[422343848,1778856638000,-500.0,0.00010957,2]
[422343818,1778856638000,-160.0,0.00010735,2]
[422343821,1778856638000,-796.15733316,0.00010858,2]
[422343816,1778856638000,-161.65638237,0.00010735,2]
[422343820,1778856638000,-255.60742027,0.0001074,2]
[422343828,1778856638000,-7654.13858501,0.00010858,2]
[422343814,1778856638000,-205.24041057,0.00010684,2]
[422343812,1778856638000,-1523.033094,0.00010649,2]
[422343810,1778856638000,-181.03735872,0.00010648,2]
[422343808,1778856638000,-69.71554231,0.00010542,2]
[422343801,1778856638000,-1748.45620761,0.00010542,2]
[422343803,1778856638000,-1200.51787169,0.00010542,2]
[422343798,1778856638000,-1480.69323318,0.00010542,2]
[422343869,1778856638000,-500.0,0.00010958,2]
[422343830,1778856638000,-185.378,0.00010895,2]
[422343871,1778856638000,-500.0,0.00010958,2]
[422343880,1778856638000,-1593.81,0.00010958,2]
[422343876,1778856638000,-637.98,0.00010958,2]
[422343926,1778856638000,-595.51,0.00010958,2]
[422343873,1778856638000,-555.26,0.00010958,2]
[422343924,1778856638000,-644.83365055,0.00010958,2]
[422343922,1778856638000,-500.0,0.00010958,2]
[422343920,1778856638000,-500.0,0.00010958,2]
[422343905,1778856638000,-500.0,0.00010958,2]
[422343914,1778856638000,-500.0,0.00010958,2]
[422343916,1778856638000,-500.0,0.00010958,2]
[422343918,1778856638000,-867.61,0.00010958,2]
[422343903,1778856638000,-735.58,0.00010958,2]
[422343913,1778856638000,-500.0,0.00010958,2]
[422343901,1778856638000,-605.84,0.00010958,2]
[422343899,1778856638000,-500.0,0.00010958,2]
[422343910,1778856638000,-500.0,0.00010958,2]
[422343928,1778856638000,-102.11985063,0.00010958,2]
[422343907,1778856638000,-500.0,0.00010958,2]
[422343909,1778856638000,-500.0,0.00010958,2]
[422343860,1778856638000,-503.08012041,0.00010958,2]
[422343865,1778856638000,-569.3,0.00010958,2]
[422343858,1778856638000,-500.0,0.00010957,2]
[422343863,1778856638000,-500.0,0.00010958,2]
[422343862,1778856638000,-2116.9169,0.00010958,2]
[422343874,1778856638000,-500.0,0.00010958,2]
[422343878,1778856638000,-547.66,0.00010958,2]
[422343882,1778856638000,-938.48,0.00010958,2]
[422343884,1778856638000,-525.24,0.00010958,2]
[422343897,1778856638000,-500.0,0.00010958,2]
[422343885,1778856638000,-500.0,0.00010958,2]
[422343997,1778856639000,-500.0,0.00010958,2]
[422344006,1778856639000,-501.69391113,0.00010958,2]
[422344008,1778856639000,-500.0,0.00010958,2]
[422343993,1778856639000,-500.0,0.00010958,2]
[422344002,1778856639000,-500.0,0.00010958,2]
[422343991,1778856639000,-500.0,0.00010958,2]
[422343989,1778856639000,-500.0,0.00010958,2]
[422344001,1778856639000,-500.0,0.00010958,2]
[422344004,1778856639000,-1226.53,0.00010958,2]
[422343995,1778856639000,-500.0,0.00010958,2]
[422344010,1778856639000,-732.42,0.00010958,2]
[422343999,1778856639000,-500.71604441,0.00010958,2]
[422344022,1778856639000,-500.0,0.00010958,2]
[422344020,1778856639000,-500.0,0.00010958,2]
[422344012,1778856639000,-500.0,0.00010958,2]
[422344028,1778856639000,-500.0,0.00010958,2]
[422344030,1778856639000,-500.0,0.00010958,2]
[422344014,1778856639000,-501.16050215,0.00010958,2]
[422344026,1778856639000,-500.0,0.00010958,2]
[422344018,1778856639000,-500.0,0.00010958,2]
[422344016,1778856639000,-2272.29,0.00010958,2]
[422344034,1778856639000,-500.0,0.00010958,2]
[422344032,1778856639000,-567.12,0.00010958,2]
[422344036,1778856639000,-612.78,0.00010958,2]
[422344046,1778856639000,-500.0,0.00010958,2]
[422344038,1778856639000,-500.0,0.00010958,2]
[422343987,1778856639000,-601.05,0.00010958,2]
[422344024,1778856639000,-500.0,0.00010958,2]
[422343984,1778856639000,-500.0,0.00010958,2]
[422344093,1778856639000,-500.0,0.00010958,2]
[422343972,1778856639000,-1646.4,0.00010958,2]
[422344042,1778856639000,-755.85,0.00010958,2]
[422343931,1778856639000,-397.88014937,0.00010958,2]
[422343932,1778856639000,-500.0,0.00010958,2]
[422343934,1778856639000,-500.0,0.00010958,2]
[422343936,1778856639000,-514.20152105,0.00010958,2]
[422343938,1778856639000,-565.79,0.00010958,2]
[422343940,1778856639000,-629.99,0.00010958,2]
[422343942,1778856639000,-500.0,0.00010958,2]
[422343944,1778856639000,-701.25,0.00010958,2]
[422343946,1778856639000,-500.0,0.00010958,2]
[422343955,1778856639000,-2127.8792,0.00010958,2]
[422343953,1778856639000,-535.33,0.00010958,2]
[422343951,1778856639000,-500.0,0.00010958,2]
[422343985,1778856639000,-500.0,0.00010958,2]
[422343959,1778856639000,-500.0,0.00010958,2]
[422343964,1778856639000,-1725.25,0.00010958,2]
[422343957,1778856639000,-500.0,0.00010958,2]
[422343961,1778856639000,-500.0,0.00010958,2]
[422343950,1778856639000,-1513.45,0.00010958,2]
[422343962,1778856639000,-500.0,0.00010958,2]
[422343976,1778856639000,-500.0,0.00010958,2]
[422343966,1778856639000,-500.0,0.00010958,2]